fUST/lending_fUST_20241126
["ID","MTS","AMOUNT","RATE_DAILY","PERIOD"]
[343377491,1732611051272,-179.209378,0.00029315,7]
[343377492,1732611051283,-151.0,0.00029315,7]
[343377493,1732611051293,-179.209378,0.00029315,7]
[343377494,1732611051306,-151.0,0.00029315,7]
[343377495,1732611051315,-151.0,0.00029315,7]
[343377496,1732611051325,-179.209378,0.00029315,7]
[343377497,1732611051335,-151.0,0.00029315,7]
[343377498,1732611051345,-179.209378,0.00029315,7]
[343377499,1732611051355,-510.46767535,0.00029315,2]
[343377500,1732611051365,-151.0,0.00029315,7]
[343377501,1732611051375,-179.209378,0.00029315,7]
[343377502,1732611051385,-152.3761,0.00029315,7]
[343377503,1732611051395,-179.209378,0.00029315,7]
[343377504,1732611051405,-179.209378,0.00029315,7]
[343377505,1732611051414,-179.209378,0.00029315,7]
[343377506,1732611051424,-503.25300151,0.00029315,2]
[343377507,1732611051434,-179.209378,0.00029315,7]
[343377508,1732611051444,-179.209378,0.00029315,7]
[343377509,1732611051454,-179.209378,0.00029315,7]
[343377510,1732611051464,-502.84682525,0.00029315,2]
[343377511,1732611051474,-504.40201139,0.00029315,2]
[343377512,1732611051495,-500.0,0.00029315,2]
[343377513,1732611051516,-500.0,0.00029315,2]
[343377514,1732611051526,-500.70352576,0.00029315,2]
[343377515,1732611051536,-500.0,0.00029315,2]
[343377516,1732611051546,-500.0,0.00029315,2]
[343377517,1732611051556,-500.0,0.00029315,2]
[343377518,1732611051566,-501.01256826,0.00029315,2]
[343377519,1732611051576,-352.62214753,0.00029315,2]
[343377520,1732611051585,-500.0,0.00029315,2]
[343377521,1732611051595,-500.0,0.00029315,2]
[343377522,1732611051606,-501.49743051,0.00029315,2]
[343377523,1732611051616,-542.27052717,0.00029315,2]
[343377524,1732611051626,-531.99990705,0.00029315,2]
[343377525,1732611051635,-501.21086204,0.00029315,2]
[343377526,1732611051645,-151.0,0.00029315,7]
[343377527,1732611051655,-166.667872,0.00029315,7]
[343377528,1732611051665,-505.957828,0.00029315,2]
[343377529,1732611051674,-500.0,0.00029315,2]
[343377530,1732611051683,-500.0,0.00029315,2]
[343377531,1732611051693,-500.0,0.00029315,2]
[343377532,1732611051702,-500.0,0.00029315,2]
[343377533,1732611051712,-504.25563386,0.00029315,2]
[343377534,1732611051721,-500.0,0.00029315,2]
[343377535,1732611051731,-500.0,0.00029315,2]
[343377536,1732611051740,-500.0,0.00029315,2]
[343377537,1732611051753,-500.0,0.00029315,2]
[343377538,1732611051763,-500.0,0.00029315,2]
[343377539,1732611051772,-163.43250947,0.00029315,2]
[343377540,1732611051781,-500.0,0.00029315,2]
[343377541,1732611051790,-500.0,0.00029315,2]
[343377542,1732611051800,-389.24395239,0.00029315,2]
[343377543,1732611051809,-504.14856933,0.00029315,2]
[343377544,1732611051819,-256.85741604,0.00029315,2]
[343377545,1732611051828,-501.65643838,0.00029315,2]
[343377546,1732611051838,-508.90959534,0.00029315,2]
[343377547,1732611051847,-500.0,0.00029315,2]
[343377548,1732611051857,-500.0,0.00029315,2]
[343377549,1732611051866,-500.0,0.00029315,2]
[343377550,1732611051875,-186.32636346,0.00029315,2]
[343377551,1732611051885,-508.25884752,0.00029315,2]
[343377552,1732611051894,-500.0,0.00029315,2]
[343377553,1732611051906,-500.0,0.00029315,2]
[343377554,1732611051915,-500.0,0.00029315,2]
[343377555,1732611051925,-500.0,0.00029315,2]
[343377556,1732611051935,-500.0,0.00029315,2]
[343377557,1732611051944,-187.61562879,0.00029315,2]
[343377558,1732611051954,-504.20681075,0.00029315,2]
[343377559,1732611051964,-284.39370793,0.00029315,2]
[343377560,1732611051974,-500.0,0.00029315,2]
[343377561,1732611051983,-500.0,0.00029315,2]
[343377562,1732611051992,-500.0,0.00029315,2]
[343377563,1732611052005,-500.0,0.00029315,2]
[343377564,1732611052014,-509.43517174,0.00029315,2]
[343377565,1732611052023,-505.69539129,0.00029315,2]
[343377566,1732611052033,-500.0,0.00029315,2]
[343377567,1732611052042,-500.0,0.00029315,2]
[343377568,1732611052052,-500.0,0.00029315,2]
[343377569,1732611052061,-500.0,0.00029315,2]
[343377570,1732611052071,-500.0,0.00029315,2]
[343377571,1732611052081,-500.0,0.00029315,2]
[343377572,1732611052090,-319.16263033,0.00029315,2]
[343377573,1732611052099,-500.0,0.00029315,2]
[343377574,1732611052109,-505.21990039,0.00029315,2]
[343377575,1732611052119,-502.40778284,0.00029315,2]
[343377576,1732611052129,-510.80688555,0.00029315,2]
[343377577,1732611052138,-500.0,0.00029315,2]
[343377578,1732611052148,-231.32472963,0.00029315,2]
[343377579,1732611052157,-501.95800973,0.00029315,2]
[343377580,1732611052166,-510.49905889,0.00029315,2]
[343377581,1732611052176,-504.43623469,0.00029315,2]
[343377582,1732611052186,-504.35235922,0.00029315,2]
[343377583,1732611052275,-505.9390044,0.00029315,2]
[343377584,1732611052284,-508.01281609,0.00029315,2]
[343377585,1732611052293,-500.0,0.00029315,2]
[343377586,1732611052302,-500.0,0.00029315,2]
[343377587,1732611052311,-500.0,0.00029315,2]
[343377588,1732611052321,-508.80365568,0.00029315,2]
[343377589,1732611052330,-239.37883813,0.00029315,2]
[343377590,1732611052339,-500.0,0.00029315,2]
[343377591,1732611052348,-500.0,0.00029315,2]
[343377592,1732611052357,-500.0,0.00029315,2]
[343377593,1732611052366,-500.0,0.00029315,2]
[343377594,1732611052375,-520.14947053,0.00029315,2]
[343377595,1732611052384,-502.20248786,0.00029315,2]
[343377596,1732611052397,-500.0,0.00029315,2]
[343377597,1732611052407,-500.0,0.00029315,2]
[343377598,1732611052416,-500.0,0.00029315,2]
[343377599,1732611052425,-500.0,0.00029315,2]
[343377600,1732611052438,-541.66831443,0.00029315,2]
[343377601,1732611052448,-151.0,0.00029315,7]
[343377602,1732611052457,-151.74705,0.00029315,7]
[343377603,1732611052468,-501.8289266,0.00029315,2]
[343377604,1732611052478,-500.0,0.00029315,2]
[343377605,1732611052488,-511.66723716,0.00029315,2]
[343377606,1732611052500,-507.06433293,0.00029315,2]
[343377607,1732611052509,-500.0,0.00029315,2]
[343377608,1732611052518,-500.0,0.00029315,2]
[343377609,1732611052527,-500.0,0.00029315,2]
[343377610,1732611052537,-500.0,0.00029315,2]
[343377611,1732611052546,-508.31899445,0.00029315,2]
[343377612,1732611052555,-509.52129349,0.00029315,2]
[343377613,1732611052565,-501.58872193,0.00029315,2]
[343377614,1732611052575,-500.0,0.00029315,2]
[343377615,1732611052585,-500.0,0.00029315,2]
[343377616,1732611052594,-500.0,0.00029315,2]
[343377617,1732611052604,-500.0,0.00029315,2]
[343377618,1732611052614,-500.0,0.00029315,2]
[343377619,1732611052623,-500.0,0.00029315,2]
[343377620,1732611052633,-500.0,0.00029315,2]
[343377621,1732611052643,-500.0,0.00029315,2]
[343377622,1732611052653,-500.0,0.00029315,2]
[343377623,1732611052663,-500.0,0.00029315,2]
[343377624,1732611052673,-500.0,0.00029315,2]
[343377625,1732611052683,-509.74087638,0.00029315,2]
[343377626,1732611052693,-500.0,0.00029315,2]
[343377627,1732611052703,-500.0,0.00029315,2]
[343377628,1732611052712,-500.0,0.00029315,2]
[343377629,1732611052721,-500.0,0.00029315,2]
[343377630,1732611052730,-500.0,0.00029315,2]
[343377631,1732611052739,-500.0,0.00029315,2]
[343377632,1732611052755,-500.0,0.00029315,2]
[343377633,1732611052763,-500.0,0.00029315,2]
[343377634,1732611052772,-500.0,0.00029315,2]
[343377635,1732611052781,-310.24717191,0.00029315,2]
[343377636,1732611052790,-500.0,0.00029315,2]
[343377637,1732611052799,-500.0,0.00029315,2]
[343377638,1732611052808,-507.91234404,0.00029315,2]
[343377639,1732611052817,-500.0,0.00029315,2]
[343377640,1732611052826,-594.28706322,0.00029315,2]
[343377641,1732611052835,-500.0,0.00029315,2]
[343377642,1732611052846,-500.0,0.00029315,2]
[343377643,1732611052855,-500.0,0.00029315,2]
[343377644,1732611052865,-166.42304866,0.00029315,2]
[343377645,1732611052874,-500.0,0.00029315,2]
[343377646,1732611052884,-500.0,0.00029315,2]
[343377647,1732611052894,-508.73974923,0.00029315,2]
[343377648,1732611052904,-500.0,0.00029315,2]
[343377649,1732611052914,-558.93016873,0.00029315,2]
[343377650,1732611052924,-500.97615413,0.00029315,2]
[343377651,1732611052933,-500.0,0.00029315,2]
[343377652,1732611052942,-503.09995985,0.00029315,2]
[343377653,1732611052952,-503.31374326,0.00029315,2]
[343377654,1732611052961,-500.0,0.00029315,2]
[343377655,1732611052971,-524.29884384,0.00029315,2]
[343377656,1732611052981,-500.0,0.00029315,2]
[343377657,1732611052991,-500.0,0.00029315,2]
[343377658,1732611053006,-500.0,0.00029315,2]
[343377659,1732611053016,-526.23224138,0.00029315,2]
[343377660,1732611053025,-500.0,0.00029315,2]
[343377661,1732611053035,-500.0,0.00029315,2]
[343377662,1732611053044,-500.0,0.00029315,2]
[343377663,1732611053054,-500.0,0.00029315,2]
[343377664,1732611053064,-500.0,0.00029315,2]
[343377665,1732611053074,-501.91826808,0.00029315,2]
[343377666,1732611053084,-357.84069784,0.00029315,2]
[343377667,1732611053094,-178.69662517,0.00029315,2]
[343377668,1732611053103,-500.0,0.00029315,2]
[343377669,1732611053113,-500.0,0.00029315,2]
[343377670,1732611053123,-175.16893719,0.00029315,2]
[343377671,1732611053133,-500.0,0.00029315,2]
[343377672,1732611053143,-500.0,0.00029315,2]
[343377673,1732611053153,-500.0,0.00029315,2]
[343377674,1732611053163,-500.0,0.00029315,2]
[343377675,1732611053172,-500.00000002,0.00029315,2]
[343377676,1732611053182,-500.0,0.00029315,2]
[343377677,1732611053196,-500.0,0.00029315,2]
[343377678,1732611053205,-500.0,0.00029315,2]
[343377679,1732611053215,-277.99102479,0.00029315,2]
[343377680,1732611053225,-617.77557488,0.00029315,2]
[343377681,1732611053235,-500.0,0.00029315,2]
[343377682,1732611053248,-500.0,0.00029315,2]
[343377683,1732611053257,-500.0,0.00029315,2]
[343377684,1732611053267,-500.0,0.00029315,2]
[343377685,1732611053276,-500.0,0.00029315,2]
[343377686,1732611053286,-500.0,0.00029315,2]
[343377687,1732611053296,-500.0,0.00029315,2]
[343377688,1732611053306,-500.0,0.00029315,2]
[343377689,1732611053316,-500.0,0.00029315,2]
[343377690,1732611053327,-500.0,0.00029315,2]
[343377691,1732611053337,-168.02344718,0.00029315,2]
[343377692,1732611053348,-500.0,0.00029315,2]
[343377693,1732611053358,-500.0,0.00029315,2]
[343377694,1732611053370,-500.0,0.00029315,2]
[343377695,1732611053381,-343.42138137,0.00029315,2]
[343377696,1732611053444,-500.0,0.00029315,2]
[343377697,1732611053460,-500.0,0.00029315,2]
[343377698,1732611053471,-475.44118841,0.00029315,2]
[343377699,1732611053481,-500.0,0.00029315,2]
[343377700,1732611053491,-500.0,0.00029315,2]
[343377701,1732611053505,-505.93617101,0.00029315,2]
[343377702,1732611053515,-502.867278,0.00029315,2]
[343377703,1732611053524,-500.0,0.00029315,2]
[343377704,1732611053534,-158.22576392,0.00029315,2]
[343377705,1732611053544,-522.04,0.00029315,2]
[343377706,1732611053553,-549.2556992,0.00029315,2]
[343377707,1732611053564,-500.0,0.00029315,2]
[343377708,1732611053573,-506.76872365,0.00029315,2]
[343377709,1732611053583,-500.0,0.00029315,2]
[343377710,1732611053592,-465.63621635,0.00029315,2]
[343377711,1732611053601,-501.15275524,0.00029315,2]
[343377712,1732611053611,-500.0,0.00029315,2]
[343377713,1732611053621,-567.8525758,0.00029315,2]
[343377714,1732611053631,-509.6194782,0.00029315,2]
[343377715,1732611053641,-503.34343402,0.00029315,2]
[343377716,1732611053650,-504.48340195,0.00029315,2]
[343377717,1732611053660,-500.0,0.00029315,2]
[343377718,1732611053669,-503.11226632,0.00029315,2]
[343377719,1732611053679,-500.0,0.00029315,2]
[343377720,1732611053688,-500.0,0.00029315,2]
[343377721,1732611053698,-500.0,0.00029315,2]
[343377722,1732611053707,-511.3972131,0.00029315,2]
[343377723,1732611053717,-594.85577172,0.00029315,2]
[343377724,1732611053726,-313.74212656,0.00029315,2]
[343377725,1732611053735,-503.06950358,0.00029315,2]
[343377726,1732611053748,-501.41409407,0.00029315,2]
[343377727,1732611053757,-500.0,0.00029315,2]
[343377728,1732611053767,-500.0,0.00029315,2]
[343377729,1732611053776,-500.0,0.00029315,2]
[343377730,1732611053785,-501.34532313,0.00029315,2]
[343377731,1732611053795,-500.0,0.00029315,2]
[343377732,1732611053804,-500.0,0.00029315,2]
[343377733,1732611053813,-500.0,0.00029315,2]
[343377734,1732611053823,-500.0,0.00029315,2]
[343377735,1732611053832,-500.0,0.00029315,2]
[343377736,1732611053841,-608.04345491,0.00029315,2]
[343377737,1732611053851,-3973.08,0.00029315,2]
[343377738,1732611053860,-501.56834781,0.00029315,2]
[343377739,1732611053870,-3973.08,0.00029315,2]
[343377740,1732611053879,-3973.08,0.00029315,2]
[343377741,1732611053889,-3973.08,0.00029315,2]
[343377742,1732611053898,-3973.08,0.00029315,2]
[343377743,1732611053907,-3973.08,0.00029315,2]
[343377744,1732611053917,-3973.08,0.00029315,2]
[343377745,1732611053926,-501.19359497,0.00029315,2]
[343377746,1732611053935,-3973.08,0.00029315,2]
[343377747,1732611053944,-3973.08,0.00029315,2]
[343377748,1732611053954,-511.90769927,0.00029315,2]
[343377749,1732611053967,-3973.08,0.00029315,2]
[343377750,1732611053986,-3973.08,0.00029315,2]
[343377751,1732611054003,-505.03516364,0.00029315,2]
[343377752,1732611054020,-3973.08,0.00029315,2]
[343377753,1732611054036,-502.55865866,0.00029315,2]
[343377754,1732611054053,-3973.08,0.00029315,2]
[343377755,1732611054069,-3973.08,0.00029315,2]
[343377756,1732611054086,-3973.08,0.00029315,2]
[343377757,1732611054100,-504.40211095,0.00029315,2]
[343377758,1732611054118,-504.45376883,0.00029315,2]
[343377759,1732611054135,-3973.08,0.00029315,2]
[343377760,1732611054148,-3973.08,0.00029315,2]
[343377761,1732611054162,-177.052703,0.00029315,7]
[343377762,1732611054179,-3973.08,0.00029315,2]
[343377763,1732611054197,-3973.08,0.00029315,2]
[343377764,1732611054215,-177.052703,0.00029315,7]
[343377765,1732611054231,-3973.08,0.00029315,2]
[343377766,1732611054243,-3973.08,0.00029315,2]
[343377767,1732611054262,-177.052703,0.00029315,7]
[343377768,1732611054280,-3973.08,0.00029315,2]
[343377769,1732611054294,-177.052703,0.00029315,7]
[343377770,1732611054307,-503.87126836,0.00029315,2]
[343377771,1732611054322,-3973.08,0.00029315,2]
[343377772,1732611054334,-3973.0856881,0.00029315,2]
[343377773,1732611054347,-177.052703,0.00029315,7]
[343377774,1732611054360,-177.052703,0.00029315,7]
[343377775,1732611054374,-177.052703,0.00029315,7]
[343377776,1732611054387,-177.052703,0.00029315,7]
[343377777,1732611054401,-177.052703,0.00029315,7]
[343377778,1732611054414,-500.0,0.00029315,2]
[343377779,1732611054428,-177.052703,0.00029315,7]
[343377780,1732611054441,-177.052703,0.00029315,7]
[343377781,1732611054454,-500.0,0.00029315,2]
[343377782,1732611054467,-500.0,0.00029315,2]
[343377783,1732611054480,-500.0,0.00029315,2]
[343377784,1732611054492,-177.052703,0.00029315,7]
[343377785,1732611054507,-150.91721418,0.00029315,2]
[343377786,1732611054519,-502.75640783,0.00029315,2]
[343377787,1732611054531,-177.052703,0.00029315,7]
[343377788,1732611054544,-501.43108952,0.00029315,2]
[343377789,1732611054556,-500.0,0.00029315,2]
[343377790,1732611054568,-177.052703,0.00029315,7]
[343377791,1732611054581,-500.0,0.00029315,2]
[343377792,1732611054593,-177.052703,0.00029315,7]
[343377793,1732611054606,-500.0,0.00029315,2]
[343377794,1732611054618,-500.0,0.00029315,2]
[343377795,1732611054631,-177.052703,0.00029315,7]
[343377796,1732611054643,-500.0,0.00029315,2]
[343377797,1732611054656,-500.0,0.00029315,2]
[343377798,1732611054668,-177.052703,0.00029315,7]
[343377799,1732611054680,-500.0,0.00029315,2]
[343377800,1732611054694,-572.9484929,0.00029315,2]
[343377801,1732611054782,-500.0,0.00029315,2]
[343377802,1732611054791,-177.052703,0.00029315,7]
[343377803,1732611054801,-500.0,0.00029315,2]
[343377804,1732611054810,-556.83062182,0.00029315,2]
[343377805,1732611054819,-500.0,0.00029315,2]
[343377806,1732611054828,-1012.33285408,0.00029315,10]
[343377807,1732611054838,-500.0,0.00029315,2]
[343377808,1732611054850,-500.0,0.00029315,2]
[343377809,1732611054860,-519.15847387,0.00029315,2]
[343377810,1732611054869,-504.37366875,0.00029315,2]
[343377811,1732611054879,-538.56867365,0.00029315,2]
[343377812,1732611054888,-305.87685833,0.00029315,2]
[343377813,1732611054898,-503.60169838,0.00029315,2]
[343377814,1732611054907,-512.69532454,0.00029315,2]
[343377815,1732611054917,-502.36369221,0.00029315,2]
[343377816,1732611054926,-515.92634962,0.00029315,2]
[343377817,1732611054935,-500.0,0.00029315,2]
[343377818,1732611054945,-500.0,0.00029315,2]
[343377819,1732611054955,-395.29180944,0.00029315,2]
[343377820,1732611054964,-500.0,0.00029315,2]
[343377821,1732611054974,-500.0,0.00029315,2]
[343377822,1732611054983,-500.0,0.00029315,2]
[343377823,1732611054993,-515.26881756,0.00029315,2]
[343377824,1732611055005,-502.2159322,0.00029315,2]
[343377825,1732611055014,-500.0,0.00029315,2]
[343377826,1732611055024,-408.50444175,0.00029315,2]
[343377827,1732611055033,-200.0,0.00029315,2]
[343377828,1732611055043,-515.37078642,0.00029315,2]
[343377829,1732611055053,-202.06422854,0.00029315,2]
[343377830,1732611055063,-519.7885939,0.00029315,2]
[343377831,1732611055072,-500.0,0.00029315,2]
[343377832,1732611055081,-158.11360785,0.00029315,2]
[343377833,1732611055091,-505.7501143,0.00029315,2]
[343377834,1732611055100,-505.64926113,0.00029315,2]
[343377835,1732611055109,-619.78,0.00029315,2]
[343377836,1732611055118,-619.78,0.00029315,2]
[343377837,1732611055128,-500.0,0.00029315,2]
[343377838,1732611055137,-504.00576696,0.00029315,2]
[343377839,1732611055146,-619.78,0.00029315,2]
[343377840,1732611055155,-500.0,0.00029315,2]
[343377841,1732611055164,-502.37027569,0.00029315,2]
[343377842,1732611055173,-619.78,0.00029315,2]
[343377843,1732611055184,-500.0,0.00029315,2]
[343377844,1732611055196,-619.78,0.00029315,2]
[343377845,1732611055205,-477.65431131,0.00029315,2]
[343377846,1732611055215,-619.78,0.00029315,2]
[343377847,1732611055224,-619.78,0.00029315,2]
[343377848,1732611055234,-500.0,0.00029315,2]
[343377849,1732611055246,-619.78,0.00029315,2]
[343377850,1732611055255,-501.60703655,0.00029315,2]
[343377851,1732611055265,-619.78,0.00029315,2]
[343377852,1732611055276,-619.78,0.00029315,2]
[343377853,1732611055286,-619.78,0.00029315,2]
[343377854,1732611055295,-502.41481678,0.00029315,2]
[343377855,1732611055304,-619.78,0.00029315,2]
[343377856,1732611055314,-619.78,0.00029315,2]
[343377857,1732611055323,-619.78,0.00029315,2]
[343377858,1732611055333,-500.0,0.00029315,2]
[343377859,1732611055342,-619.78,0.00029315,2]
[343377860,1732611055351,-500.0,0.00029315,2]
[343377861,1732611055361,-619.78,0.00029315,2]
[343377862,1732611055370,-619.78,0.00029315,2]
[343377863,1732611055379,-500.0,0.00029315,2]
[343377864,1732611055389,-619.78,0.00029315,2]
[343377865,1732611055398,-500.0,0.00029315,2]
[343377866,1732611055407,-500.0,0.00029315,2]
[343377867,1732611055417,-619.78,0.00029315,2]
[343377868,1732611055425,-580.36457462,0.00029315,2]
[343377869,1732611055435,-619.78,0.00029315,2]
[343377870,1732611055444,-619.78,0.00029315,2]
[343377871,1732611055453,-619.78,0.00029315,2]
[343377872,1732611055462,-619.78,0.00029315,2]
[343377873,1732611055474,-503.95323544,0.00029315,2]
[343377874,1732611055483,-619.90718603,0.00029315,2]
[343377875,1732611055492,-500.0,0.00029315,2]
[343377876,1732611055507,-507.86682188,0.00029315,2]
[343377877,1732611055521,-504.50520563,0.00029315,2]
[343377878,1732611055531,-151.0,0.00029315,7]
[343377879,1732611055541,-151.0,0.00029315,7]
[343377880,1732611055550,-151.0,0.00029315,7]
[343377881,1732611055559,-500.0,0.00029315,2]
[343377882,1732611055568,-151.0,0.00029315,7]
[343377883,1732611055578,-500.0,0.00029315,2]
[343377884,1732611055586,-500.0,0.00029315,2]
[343377885,1732611055595,-151.0,0.00029315,7]
[343377886,1732611055604,-500.0,0.00029315,2]
[343377887,1732611055614,-500.0,0.00029315,2]
[343377888,1732611055623,-151.0,0.00029315,7]
[343377889,1732611055632,-500.0,0.00029315,2]
[343377890,1732611055642,-500.0,0.00029315,2]
[343377891,1732611055651,-151.0,0.00029315,7]
[343377892,1732611055660,-500.0,0.00029315,2]
[343377893,1732611055670,-500.0,0.00029315,2]
[343377894,1732611055679,-500.0,0.00029315,2]
[343377895,1732611055689,-151.0,0.00029315,7]
[343377896,1732611055698,-500.0,0.00029315,2]
[343377897,1732611055707,-500.0,0.00029315,2]
[343377898,1732611055717,-501.63018389,0.00029315,2]
[343377899,1732611055726,-317.96172757,0.00029315,2]
[343377900,1732611055735,-151.0,0.00029315,7]
[343377901,1732611055744,-500.0,0.00029315,2]
[343377902,1732611055753,-593.42935415,0.00029315,2]
[343377903,1732611055762,-151.0,0.00029315,7]
[343377904,1732611055771,-151.0,0.00029315,7]
[343377905,1732611055781,-151.0,0.00029315,7]
[343377906,1732611055790,-199.986813,0.00029315,7]
[343377907,1732611055799,-500.0,0.00029315,2]
[343377908,1732611055809,-500.0,0.00029315,2]
[343377909,1732611055818,-513.85120939,0.00029315,2]
[343377910,1732611055827,-500.0,0.00029315,2]
[343377911,1732611055837,-500.0,0.00029315,2]
[343377912,1732611055846,-500.0,0.00029315,2]
[343377913,1732611055855,-500.0,0.00029315,2]
[343377914,1732611055865,-500.0,0.00029315,2]
[343377915,1732611055874,-346.64924902,0.00029315,2]
[343377916,1732611055883,-500.0,0.00029315,2]
[343377917,1732611055892,-501.1437243,0.00029315,2]
[343377918,1732611055901,-500.0,0.00029315,2]
[343377919,1732611055911,-500.0,0.00029315,2]
[343377920,1732611055920,-505.36090852,0.00029315,2]
[343377921,1732611055930,-500.0,0.00029315,2]
[343377922,1732611055939,-500.0,0.00029315,2]
[343377923,1732611055948,-500.0,0.00029315,2]
[343377924,1732611055958,-500.0,0.00029315,2]
[343377925,1732611055967,-504.73443533,0.00029315,2]
[343377926,1732611055977,-500.0,0.00029315,2]
[343377927,1732611055986,-500.0,0.00029315,2]
[343377928,1732611056000,-500.0,0.00029315,2]
[343377929,1732611056014,-500.0,0.00029315,2]
[343377930,1732611056024,-500.0,0.00029315,2]
[343377931,1732611056033,-500.0,0.00029315,2]
[343377932,1732611056043,-500.0,0.00029315,2]
[343377933,1732611056053,-500.0,0.00029315,2]
[343377934,1732611056062,-500.0,0.00029315,2]
[343377935,1732611056071,-500.0,0.00029315,2]
[343377936,1732611056080,-500.0,0.00029315,2]
[343377937,1732611056089,-500.0,0.00029315,2]
[343377938,1732611056099,-500.0,0.00029315,2]
[343377939,1732611056108,-500.0,0.00029315,2]
[343377940,1732611056117,-500.0,0.00029315,2]
[343377941,1732611056126,-500.0,0.00029315,2]
[343377942,1732611056136,-500.0,0.00029315,2]
[343377943,1732611056145,-500.0,0.00029315,2]
[343377944,1732611056155,-500.0,0.00029315,2]
[343377945,1732611056164,-500.0,0.00029315,2]
[343377946,1732611056174,-500.0,0.00029315,2]
[343377947,1732611056186,-500.0,0.00029315,2]
[343377948,1732611056198,-500.0,0.00029315,2]
[343377949,1732611056267,-500.0,0.00029315,2]
[343377950,1732611056278,-168.28526709,0.00029315,2]
[343377951,1732611056287,-648.1,0.00029315,2]
[343377952,1732611056297,-503.36502915,0.00029315,2]
[343377953,1732611056307,-501.83152056,0.00029315,2]
[343377954,1732611056317,-503.09099584,0.00029315,2]
[343377955,1732611056326,-503.27434513,0.00029315,2]
[343377956,1732611056335,-500.0,0.00029315,2]
[343377957,1732611056344,-500.0,0.00029315,2]
[343377958,1732611056354,-501.58746156,0.00029315,2]
[343377959,1732611056363,-500.0,0.00029315,2]
[343377960,1732611056372,-500.0,0.00029315,2]
[343377961,1732611056381,-500.0,0.00029315,2]
[343377962,1732611056390,-500.0,0.00029315,2]
[343377963,1732611056400,-500.0,0.00029315,2]
[343377964,1732611056410,-486.72015099,0.00029315,2]
[343377965,1732611056419,-507.89023366,0.00029315,2]
[343377966,1732611056427,-500.0,0.00029315,2]
[343377967,1732611056437,-500.0,0.00029315,2]
[343377968,1732611056446,-500.0,0.00029315,2]
[343377969,1732611056455,-500.0,0.00029315,2]
[343377970,1732611056464,-500.0,0.00029315,2]
[343377971,1732611056475,-249.44630666,0.00029315,2]
[343377972,1732611056484,-503.81216722,0.00029315,2]
[343377973,1732611056496,-500.0,0.00029315,2]
[343377974,1732611056506,-500.0,0.00029315,2]
[343377975,1732611056515,-308.77084304,0.00029315,2]
[343377976,1732611056525,-502.67964474,0.00029315,2]
[343377977,1732611056534,-500.0,0.00029315,2]
[343377978,1732611056543,-500.0,0.00029315,2]
[343377979,1732611056552,-500.0,0.00029315,2]
[343377980,1732611056562,-512.15345049,0.00029315,2]
[343377981,1732611056571,-500.0,0.00029315,2]
[343377982,1732611056583,-496.03165551,0.00029315,2]
[343377983,1732611056592,-528.7385734,0.00029315,2]
[343377984,1732611056602,-500.0,0.00029315,2]
[343377985,1732611056611,-582.34403369,0.00029315,2]
[343377986,1732611056621,-514.30187173,0.00029315,2]
[343377987,1732611056630,-151.0,0.00029315,7]
[343377988,1732611056640,-151.0,0.00029315,7]
[343377989,1732611056649,-151.0,0.00029315,7]
[343377990,1732611056658,-151.0,0.00029315,7]